fUST/lending_fUST_20260111
["ID","MTS","AMOUNT","RATE_DAILY","PERIOD"]
[401321083,1768134639782,-1468.20314429,0.00012329,2]
[401321085,1768134639792,-1152.0,0.00012446,2]
[401321087,1768134639802,-3521.30514597,0.000125,2]
[401321089,1768134639811,-500.0,0.00012566,2]
[401321091,1768134639820,-308.84402182,0.00012599,2]
[401321093,1768134639829,-354.84,0.000127,2]
[401321095,1768134639838,-192.83,0.000127,2]
[401321097,1768134639847,-448.52259365,0.0001284,2]
[401321099,1768134639856,-1000.0,0.00012846,2]
[401321101,1768134639865,-244.0,0.00012846,2]
[401321103,1768134639873,-354.84,0.000132,2]
[401321105,1768134639882,-192.83,0.000132,2]
[401321107,1768134639892,-500.0,0.00013273,2]
[401321109,1768134639901,-500.0,0.00013273,2]
[401321111,1768134639910,-500.0,0.00013273,2]
[401321113,1768134639919,-500.0,0.00013273,2]
[401321115,1768134639928,-500.0,0.00013273,2]
[401321117,1768134639937,-500.0,0.00013273,2]
[401321119,1768134639946,-500.0,0.00013273,2]
[401321121,1768134639955,-500.0,0.00013273,2]
[401321123,1768134639964,-500.0,0.00013273,2]
[401321125,1768134639973,-500.0,0.00013273,2]
[401321127,1768134639982,-500.0,0.00013273,2]
[401321129,1768134639991,-500.0,0.00013273,2]
[401321131,1768134640000,-500.0,0.00013273,2]
[401321133,1768134640009,-500.0,0.00013273,2]
[401321135,1768134640018,-500.0,0.00013273,2]
[401321137,1768134640027,-522.11051368,0.00013273,2]
[401321139,1768134640036,-500.0,0.00013273,2]
[401321141,1768134640050,-500.0,0.00013273,2]
[401321143,1768134640060,-500.0,0.00013273,2]
[401321145,1768134640069,-500.0,0.00013273,2]
[401321147,1768134640078,-500.0,0.00013273,2]
[401321149,1768134640087,-500.0,0.00013273,2]
[401321151,1768134640099,-500.0,0.00013273,2]
[401321153,1768134640110,-500.0,0.00013273,2]
[401321155,1768134640119,-500.0,0.00013273,2]
[401321157,1768134640128,-500.24269708,0.00013273,2]
[401321159,1768134640138,-500.0,0.00013273,2]
[401321161,1768134640148,-500.0,0.00013273,2]
[401321163,1768134640157,-500.0,0.00013273,2]
[401321165,1768134640166,-500.0,0.00013273,2]
[401321167,1768134640175,-500.0,0.00013273,2]
[401321169,1768134640184,-500.0,0.00013273,2]
[401321171,1768134640193,-500.0,0.00013273,2]
[401321173,1768134640203,-500.0,0.00013273,2]
[401321175,1768134640212,-500.0,0.00013273,2]
[401321177,1768134640222,-500.0,0.00013273,2]
[401321179,1768134640231,-500.0,0.00013273,2]
[401321181,1768134640240,-500.0,0.00013273,2]
[401321183,1768134640249,-500.0,0.00013273,2]
[401321185,1768134640259,-500.0,0.00013273,2]
[401321187,1768134640268,-500.0,0.00013273,2]
[401321189,1768134640277,-500.0,0.00013273,2]
[401321191,1768134640286,-500.0,0.00013273,2]
[401321193,1768134640295,-500.0,0.00013273,2]
[401321195,1768134640304,-500.0,0.00013273,2]
[401321197,1768134640313,-500.0,0.00013273,2]
[401321199,1768134640322,-402.502339,0.00013273,2]
[401321201,1768134640331,-495.22027723,0.00013273,2]
[401321203,1768134640340,-500.0,0.00013273,2]
[401321205,1768134640349,-500.0,0.00013273,2]
[401321207,1768134640358,-500.0,0.00013273,2]
[401321209,1768134640367,-500.0,0.00013273,2]
[401321211,1768134640377,-500.29461734,0.00013273,2]
[401321213,1768134640385,-2870.56440789,0.0001354,2]
[401321214,1768134640394,-300.0,0.00013673,2]
[401321216,1768134640404,-1613.0,0.0001369,2]
[401321218,1768134640414,-500.0,0.00013698,2]
[401321220,1768134640423,-500.0,0.00013698,2]
[401321222,1768134640433,-500.0,0.00013698,2]
[401321225,1768134640443,-500.0,0.00013698,2]
[401321227,1768134640452,-500.0,0.00013698,2]
[401321229,1768134640462,-500.0,0.00013698,2]
[401321231,1768134640471,-500.0,0.00013698,2]
[401321232,1768134640480,-500.0,0.00013698,2]
[401321235,1768134640490,-500.0,0.00013698,2]
[401321236,1768134640499,-500.0,0.00013698,2]
[401321239,1768134640509,-560.87931796,0.00013698,2]
[401321241,1768134640518,-500.0,0.00013698,2]
[401321243,1768134640528,-500.0,0.00013698,2]
[401321245,1768134640537,-500.0,0.00013698,2]
[401321247,1768134640546,-500.0,0.00013698,2]
[401321249,1768134640556,-500.0,0.00013698,2]
[401321250,1768134640565,-500.0,0.00013698,2]
[401321252,1768134640575,-500.0,0.00013698,2]
[401321255,1768134640584,-534.57834013,0.00013698,2]
[401321256,1768134640595,-1000.0,0.00013698,2]
[401321258,1768134640604,-1000.0,0.00013698,2]
[401321261,1768134640613,-1000.0,0.00013698,2]
[401321263,1768134640622,-1000.0,0.00013698,2]
[401321265,1768134640632,-1000.0,0.00013698,2]
[401321267,1768134640641,-1000.0,0.00013698,2]
[401321269,1768134640650,-593.71236514,0.00013698,2]
[401321271,1768134640659,-500.0,0.00013698,2]
[401321273,1768134640669,-500.0,0.00013698,2]
[401321275,1768134640678,-500.0,0.00013698,2]
[401321287,1768134640779,-500.0,0.00013698,2]
[401321289,1768134640789,-500.0,0.00013698,2]
[401321290,1768134640798,-500.0,0.00013698,2]
[401321292,1768134640809,-500.0,0.00013698,2]
[401321294,1768134640818,-500.0,0.00013698,2]
[401321296,1768134640828,-500.0,0.00013698,2]
[401321299,1768134640838,-500.0,0.00013698,2]
[401321302,1768134640858,-500.0,0.00013698,2]
[401321304,1768134640867,-500.0,0.00013698,2]
[401321306,1768134640877,-500.0,0.00013698,2]
[401321308,1768134640886,-374.07409846,0.00013698,2]
[401321310,1768134640895,-1000.0,0.00013699,2]
[401321312,1768134640905,-500.0,0.00013699,2]
[401321314,1768134640915,-500.0,0.00013699,2]
[401321316,1768134640925,-252.81793801,0.00013699,2]
[401321318,1768134640935,-500.0,0.00013699,2]
[401321320,1768134640944,-500.0,0.00013699,2]
[401321322,1768134640953,-500.0,0.00013699,2]
[401321324,1768134640962,-159.05967354,0.00013699,2]
[401321326,1768134640972,-500.0,0.00013699,2]
[401321328,1768134640981,-500.0,0.00013699,2]
[401321330,1768134640990,-252.75899042,0.00013699,2]
[401321332,1768134640999,-500.0,0.00013699,2]
[401321334,1768134641009,-500.0,0.00013699,2]
[401321336,1768134641019,-500.0,0.00013699,2]
[401321338,1768134641029,-192.77974704,0.00013699,2]
[401321340,1768134641038,-500.0,0.00013699,2]
[401321342,1768134641048,-500.0,0.00013699,2]
[401321344,1768134641058,-500.0,0.00013699,2]
[401321347,1768134641067,-500.0,0.00013699,2]
[401321349,1768134641076,-500.0,0.00013699,2]
[401321350,1768134641086,-500.0,0.00013699,2]
[401321353,1768134641095,-500.0,0.00013699,2]
[401321354,1768134641105,-500.0,0.00013699,2]
[401321356,1768134641114,-500.0,0.00013699,2]
[401321359,1768134641124,-500.0,0.00013699,2]
[401321361,1768134641134,-500.0,0.00013699,2]
[401321362,1768134641143,-500.0,0.00013699,2]
[401321365,1768134641153,-500.0,0.00013699,2]
[401321367,1768134641163,-500.93038909,0.00013699,2]
[401321369,1768134641172,-500.0,0.00013699,2]
[401321370,1768134641182,-250.0,0.00013699,2]
[401321373,1768134641194,-500.0,0.00013699,2]
[401321375,1768134641205,-500.0,0.00013699,2]
[401321377,1768134641214,-500.0,0.00013699,2]
[401321379,1768134641225,-500.0,0.00013699,2]
[401321381,1768134641235,-500.0,0.00013699,2]
[401321383,1768134641268,-500.0,0.00013699,2]
[401321385,1768134641277,-500.0,0.00013699,2]
[401321387,1768134641287,-500.0,0.00013699,2]
[401321389,1768134641297,-500.0,0.00013699,2]
[401321391,1768134641306,-500.0,0.00013699,2]
[401321393,1768134641315,-500.31275461,0.00013699,2]
[401321395,1768134641326,-500.0,0.00013699,2]
[401321397,1768134641335,-500.0,0.00013699,2]
[401321399,1768134641347,-413.61388111,0.00013699,2]
[401321401,1768134641356,-500.0,0.00013699,2]
[401321402,1768134641365,-500.0,0.00013699,2]
[401321405,1768134641374,-500.0,0.00013699,2]
[401321407,1768134641384,-500.0,0.00013699,2]
[401321409,1768134641395,-500.0,0.00013699,2]
[401321411,1768134641405,-500.0,0.00013699,2]
[401321413,1768134641414,-500.0,0.00013699,2]
[401321415,1768134641424,-500.0,0.00013699,2]
[401321417,1768134641433,-500.0,0.00013699,2]
[401321419,1768134641442,-500.0,0.00013699,2]
[401321421,1768134641452,-500.0,0.00013699,2]
[401321423,1768134641461,-500.0,0.00013699,2]
[401321425,1768134641470,-500.0,0.00013699,2]
[401321427,1768134641480,-500.0,0.00013699,2]
[401321429,1768134641489,-504.31837873,0.00013699,2]
[401321431,1768134641499,-501.32276914,0.00013699,2]
[401321433,1768134641508,-500.0,0.00013699,2]
[401321435,1768134641517,-268.13097792,0.00013699,2]
[401321437,1768134641528,-500.0,0.00013699,2]
[401321439,1768134641537,-295.9151759,0.00013699,2]
[401321441,1768134641547,-500.0,0.00013699,2]
[401321443,1768134641556,-500.0,0.00013699,2]
[401321445,1768134641566,-500.0,0.00013699,2]
[401321446,1768134641576,-500.0,0.00013699,2]
[401321447,1768134641585,-345.73139261,0.00013699,2]
[401321448,1768134641595,-500.0,0.00013699,2]
[401321449,1768134641604,-500.0,0.00013699,2]
[401321450,1768134641613,-500.0,0.00013699,2]
[401321451,1768134641622,-500.0,0.00013699,2]
[401321452,1768134641631,-354.84,0.000137,2]
[401321453,1768134641639,-192.83,0.000137,2]
[401321454,1768134641649,-178.09775665,0.00013821,2]
[401321455,1768134641659,-501.6206004,0.00013821,2]
[401321456,1768134641668,-1000.0,0.00013821,2]
[401321457,1768134641677,-1002.2053155,0.00013821,2]
[401321458,1768134641685,-1000.0,0.00013821,2]
[401321459,1768134641694,-502.34729237,0.00013821,2]
[401321460,1768134641703,-1000.0,0.00013821,2]
[401321461,1768134641712,-1000.0,0.00013821,2]
[401321462,1768134641721,-1000.0,0.00013821,2]
[401321463,1768134641729,-1000.0,0.00013821,2]
[401321464,1768134641738,-1000.0,0.00013821,2]
[401321465,1768134641747,-1000.0,0.00013821,2]
[401321466,1768134641756,-1000.0,0.00013821,2]
[401321467,1768134641765,-1000.0,0.00013821,2]
[401321468,1768134641774,-587.59486789,0.00013821,2]
[401321469,1768134641783,-1000.0,0.00013821,2]
[401321470,1768134641792,-1006.38443798,0.00013821,2]
[401321471,1768134641801,-1000.0,0.00013821,2]
[401321472,1768134641811,-1000.0,0.00013821,2]
[401321473,1768134641819,-1000.0,0.00013821,2]
[401321474,1768134641828,-1000.0,0.00013821,2]
[401321475,1768134641837,-1000.0,0.00013821,2]
[401321476,1768134641846,-1000.0,0.00013821,2]
[401321477,1768134641854,-1000.0,0.00013821,2]
[401321478,1768134641863,-1000.0,0.00013821,2]
[401321479,1768134641871,-1000.0,0.00013821,2]
[401321480,1768134641881,-1000.0,0.00013821,2]
[401321481,1768134641890,-1000.0,0.00013821,2]
[401321482,1768134641898,-1000.0,0.00013821,2]
[401321483,1768134641907,-1000.0,0.00013821,2]
[401321484,1768134641916,-1000.0,0.00013821,2]
[401321485,1768134641925,-1000.0,0.00013821,2]
[401321486,1768134641933,-1000.0,0.00013821,2]
[401321487,1768134641942,-501.21467235,0.00013821,2]
[401321488,1768134641951,-1000.0,0.00013821,2]
[401321489,1768134641959,-1000.0,0.00013821,2]
[401321490,1768134641968,-1000.0,0.00013821,2]
[401321491,1768134641977,-1000.0,0.00013821,2]
[401321492,1768134641986,-204.07351011,0.00013821,2]
[401321493,1768134641995,-1000.0,0.00013821,2]
[401321494,1768134642004,-1000.0,0.00013821,2]
[401321495,1768134642012,-500.76042299,0.00013821,2]
[401321496,1768134642021,-973.2526551,0.00013821,2]
[401321497,1768134642030,-1000.0,0.00013821,2]
[401321498,1768134642039,-1000.0,0.00013821,2]
[401321499,1768134642048,-877.75810228,0.00013821,2]
[401321500,1768134642057,-1000.0,0.00013821,2]
[401321501,1768134642066,-1000.0,0.0001413,2]
[401321502,1768134642074,-492.0,0.0001413,2]
[401321503,1768134642083,-354.84,0.000142,2]
[401321504,1768134642092,-192.83,0.000142,2]
[401321505,1768134642101,-600.0,0.00014221,2]
[401321506,1768134642110,-1000.0,0.00014247,2]
[401321507,1768134642119,-875.35271766,0.00014247,2]
[401321508,1768134642128,-1000.0,0.00014247,2]
[401321509,1768134642136,-1000.0,0.00014247,2]
[401321510,1768134642145,-1000.0,0.00014247,2]
[401321511,1768134642154,-1000.0,0.00014247,2]
[401321512,1768134642163,-1000.0,0.00014247,2]
[401321513,1768134642172,-283.3787305,0.00014247,2]
[401321514,1768134642181,-1000.0,0.00014247,2]
[401321515,1768134642189,-611.85295008,0.00014247,2]
[401321516,1768134642198,-1000.0,0.00014247,2]
[401321517,1768134642207,-969.53593685,0.00014247,2]
[401321518,1768134642215,-1000.0,0.00014247,2]
[401321519,1768134642224,-501.52224721,0.00014247,2]
[401321521,1768134642233,-1000.0,0.00014247,2]
[401321522,1768134642242,-1000.0,0.00014247,2]
[401321524,1768134642251,-1001.8641087,0.00014247,2]
[401321525,1768134642260,-1000.0,0.00014247,2]
[401321526,1768134642269,-1000.0,0.00014247,2]
[401321527,1768134642278,-1000.0,0.00014247,2]
[401321528,1768134642287,-671.67593478,0.00014247,2]
[401321529,1768134642296,-1000.0,0.00014247,2]
[401321530,1768134642305,-1029.61129365,0.00014247,2]
[401321531,1768134642313,-1000.0,0.00014247,2]
[401321532,1768134642322,-1000.0,0.00014247,2]
[401321533,1768134642331,-1000.0,0.00014247,2]
[401321535,1768134642340,-1000.0,0.00014247,2]
[401321537,1768134642349,-1003.14554213,0.00014247,2]
[401321538,1768134642358,-1000.0,0.00014247,2]
[401321539,1768134642372,-1000.0,0.00014247,2]
[401321540,1768134642381,-1000.0,0.00014247,2]
[401321541,1768134642390,-1000.0,0.00014247,2]
[401321542,1768134642399,-1000.0,0.00014247,2]
[401321543,1768134642409,-1000.0,0.00014247,2]
[401321544,1768134642418,-1000.0,0.00014247,2]
[401321545,1768134642428,-1000.0,0.00014247,2]
[401321546,1768134642438,-1000.0,0.00014247,2]
[401321547,1768134642447,-1000.0,0.00014247,2]
[401321548,1768134642456,-1000.0,0.00014247,2]
[401321549,1768134642466,-710.18768542,0.00014247,2]
[401321550,1768134642475,-1000.0,0.00014247,2]
[401321551,1768134642484,-1000.0,0.00014247,2]
[401321552,1768134642493,-1000.0,0.00014247,2]
[401321553,1768134642501,-1000.0,0.00014247,2]
[401321554,1768134642509,-1000.0,0.00014247,2]
[401321555,1768134642518,-1000.0,0.00014247,2]
[401321556,1768134642527,-1000.0,0.00014247,2]
[401321557,1768134642536,-500.0,0.00014247,2]
[401321558,1768134642547,-1000.0,0.00014247,2]
[401321559,1768134642557,-443.77041137,0.00014247,2]
[401321560,1768134642567,-638.41119879,0.00014247,2]
[401321561,1768134642576,-1000.0,0.00014247,2]
[401321562,1768134642586,-1000.0,0.00014247,2]
[401321563,1768134642595,-1000.0,0.00014247,2]
[401321564,1768134642605,-1000.0,0.00014247,2]
[401321565,1768134642614,-505.42705469,0.00014247,2]
[401321566,1768134642623,-1000.0,0.00014247,2]
[401321567,1768134642632,-793.78310386,0.00014368,2]
[401321568,1768134642641,-1500.0,0.00014368,2]
[401321569,1768134642650,-1512.80470062,0.00014368,2]
[401321570,1768134642659,-1500.0,0.00014368,2]
[401321571,1768134642669,-651.39515074,0.00014368,2]
[401321572,1768134642678,-1500.0,0.00014368,2]
[401321573,1768134642687,-1500.0,0.00014368,2]
[401321574,1768134642696,-1500.0,0.00014368,2]
[401321575,1768134642704,-1500.0,0.00014368,2]
[401321576,1768134642713,-1500.0,0.00014368,2]
[401321577,1768134642724,-1500.0,0.00014368,2]
[401321578,1768134642734,-1000.80134157,0.00014368,2]
[401321579,1768134642744,-1500.0,0.00014368,2]
[401321580,1768134642753,-1500.0,0.00014368,2]
[401321581,1768134642762,-1500.0,0.00014368,2]
[401321582,1768134642771,-546.83647191,0.00014368,2]
[401321583,1768134642782,-613.91769968,0.00014368,2]
[401321584,1768134642791,-1500.0,0.00014368,2]
[401321585,1768134642801,-554.02767991,0.00014368,2]
[401321586,1768134642810,-1500.0,0.00014368,2]
[401321587,1768134642819,-1000.0,0.00014368,2]
[401321588,1768134642829,-168.36851892,0.00014368,2]
[401321589,1768134642838,-1500.0,0.00014368,2]
[401321590,1768134642848,-1500.0,0.00014368,2]
[401321591,1768134642858,-406.5913621,0.00014368,2]
[401321592,1768134642867,-1500.0,0.00014368,2]
[401321593,1768134642877,-1500.0,0.00014368,2]
[401321594,1768134642887,-1500.0,0.00014368,2]
[401321595,1768134642896,-1500.0,0.00014368,2]
[401321596,1768134642906,-263.96834089,0.00014368,2]
[401321597,1768134643024,-1500.0,0.00014368,2]
[401321598,1768134643034,-1613.36442406,0.00014368,2]
[401321599,1768134643045,-1500.0,0.00014368,2]
[401321600,1768134643055,-1500.0,0.00014368,2]
[401321601,1768134643065,-223.48736773,0.00014368,2]
[401321602,1768134643074,-5000.0,0.0001451,2]
[401321603,1768134643083,-349.72043647,0.00014599,2]
[401321604,1768134643093,-354.84,0.000147,2]
[401321605,1768134643102,-192.83,0.000147,2]
[401321606,1768134643112,-100000.0,0.00014736,2]
[401321607,1768134643121,-900.0,0.00014768,2]
[401321608,1768134643131,-500.79965419,0.00014795,2]
[401321609,1768134643140,-1514.12213244,0.00014795,2]
[401321610,1768134643149,-657.07022264,0.00014795,2]
[401321611,1768134643158,-488.64589349,0.00014795,2]
[401321612,1768134643167,-1500.0,0.00014795,2]
[401321613,1768134643177,-1500.0,0.00014795,2]
[401321614,1768134643186,-502.38932755,0.00014795,2]
[401321615,1768134643196,-1102.53259662,0.00014795,2]
[401321616,1768134643205,-161.478767,0.00014795,2]
[401321617,1768134643214,-1500.0,0.00014795,2]
[401321618,1768134643223,-1500.0,0.00014795,2]
[401321619,1768134643233,-1499.24471264,0.00014795,2]
[401321620,1768134643242,-1500.0,0.00014795,2]
[401321621,1768134643251,-1500.0,0.00014795,2]
[401321622,1768134643262,-1500.0,0.00014795,2]
[401321623,1768134643271,-1500.0,0.00014795,2]
[401321624,1768134643280,-501.33075681,0.00014795,2]
[401321625,1768134643289,-1174.14847626,0.00014795,2]
[401321626,1768134643299,-1025.59078617,0.00014795,2]
[401321627,1768134643308,-514.14829436,0.00014795,2]
[401321628,1768134643318,-1163.68911449,0.00014795,2]
[401321629,1768134643327,-1500.0,0.00014795,2]
[401321630,1768134643336,-813.64870907,0.00014795,2]
[401321631,1768134643350,-1500.0,0.00014795,2]
[401321632,1768134643359,-1000.0,0.00014795,2]
[401321633,1768134643369,-1236.28209818,0.00014795,2]
[401321634,1768134643379,-1001.3782102,0.00014795,2]
[401321635,1768134643389,-1500.0,0.00014795,2]
[401321636,1768134643398,-788.05151213,0.00014795,2]
[401321637,1768134643406,-1500.0,0.00014795,2]
[401321638,1768134643417,-1500.0,0.00014795,2]
[401321639,1768134643426,-1482.84709438,0.00014795,2]
[401321640,1768134643434,-1516.76085072,0.00014795,2]
[401321641,1768134643443,-503.75899236,0.00014795,2]
[401321642,1768134643452,-1500.0,0.00014795,2]
[401321643,1768134643462,-1500.0,0.00014795,2]
[401321644,1768134643472,-1509.97698878,0.00014795,2]
[401321645,1768134643482,-1500.0,0.00014795,2]
[401321646,1768134643492,-1500.0,0.00014795,2]
[401321647,1768134643502,-304.84096496,0.00014795,2]
[401321648,1768134643512,-1500.0,0.00014795,2]
[401321649,1768134643521,-1500.0,0.00014795,2]
[401321650,1768134643531,-192.00163587,0.00014916,2]
[401321651,1768134643540,-1498.81892914,0.00014916,2]
[401321652,1768134643550,-2000.0,0.00014916,2]
[401321653,1768134643559,-2000.0,0.00014916,2]
[401321654,1768134643569,-2000.0,0.00014916,2]
[401321655,1768134643578,-1001.19360014,0.00014916,2]
[401321656,1768134643589,-2000.0,0.00014916,2]
[401321657,1768134643600,-1485.3091038,0.00014916,2]
[401321658,1768134643611,-1150.76965904,0.00014916,2]
[401321659,1768134643623,-2000.0,0.00014916,2]
[401321660,1768134643632,-1965.81779273,0.00014916,2]
[401321661,1768134643642,-1781.06836301,0.00014916,2]
[401321662,1768134643651,-2000.0,0.00014916,2]
[401321663,1768134643661,-874.83618263,0.00014916,2]
[401321664,1768134643670,-2000.0,0.00014916,2]
[401321665,1768134643679,-2000.0,0.00014916,2]
[401321666,1768134643688,-2000.0,0.00014916,2]
[401321667,1768134643698,-2000.0,0.00014916,2]
[401321668,1768134643708,-2000.0,0.00014916,2]
[401321669,1768134643717,-2000.0,0.00014916,2]
[401321670,1768134643726,-1002.33157316,0.00014916,2]
[401321671,1768134643735,-2000.0,0.00014916,2]
[401321672,1768134643745,-1000.0,0.00015,2]
[401321673,1768134643753,-727.78714077,0.00015,5]
[401321674,1768134643762,-2429.49739422,0.00015,2]
[401321675,1768134643771,-2153.0,0.00015059,2]
[401321677,1768134643781,-585.11053,0.00015068,2]
[401321678,1768134643791,-800.0,0.00015068,2]
[401321679,1768134643799,-354.84,0.000153,2]
[401321680,1768134643811,-192.83,0.000153,2]
[401321682,1768134643820,-1200.0,0.00015316,2]
[401321683,1768134643833,-339.58703801,0.00015342,2]
[401321684,1768134643844,-2000.0,0.00015342,2]
[401321685,1768134643854,-1640.95571878,0.00015342,2]
[401321686,1768134643863,-2000.0,0.00015342,2]
[401321687,1768134643872,-1143.18421046,0.00015342,2]
[401321688,1768134643882,-2000.0,0.00015342,2]
[401321689,1768134643891,-2000.0,0.00015342,2]
[401321690,1768134643901,-589.88646751,0.00015342,2]
[401321691,1768134643911,-500.0,0.00015342,2]
[401321692,1768134643920,-1597.05305078,0.00015342,2]
[401321693,1768134643929,-1004.51727604,0.00015342,2]
[401321694,1768134643938,-1144.01857865,0.00015342,2]
[401321695,1768134643947,-304.72135436,0.00015342,2]
[401321696,1768134643957,-2000.0,0.00015342,2]
[401321697,1768134643966,-1003.80919542,0.00015342,2]
[401321698,1768134643976,-2000.0,0.00015342,2]
[401321699,1768134643986,-1501.01375621,0.00015342,2]
[401321700,1768134643997,-2000.0,0.00015342,2]
[401321701,1768134644006,-2000.0,0.00015342,2]
[401321702,1768134644015,-2500.0,0.00015464,2]
[401321703,1768134644024,-2500.0,0.00015464,2]
[401321704,1768134644034,-1466.62413338,0.00015464,2]
[401321705,1768134644044,-1102.18109458,0.00015464,2]
[401321706,1768134644054,-170.16316784,0.00015464,2]
[401321707,1768134644064,-2500.0,0.00015464,2]
[401321708,1768134644075,-2500.0,0.00015464,2]
[401321709,1768134644088,-2500.0,0.00015464,2]
[401321710,1768134644097,-2500.0,0.00015464,2]
[401321711,1768134644107,-2500.0,0.00015464,2]
[401321712,1768134644115,-2500.0,0.00015464,2]
[401321713,1768134644127,-2500.0,0.00015464,2]
[401321714,1768134644139,-2500.0,0.00015464,2]
[401321715,1768134644153,-1000.0,0.00015543,2]
[401321716,1768134644162,-791.0,0.00015543,2]
[401321717,1768134644171,-354.84,0.000158,2]
[401321718,1768134644181,-192.83,0.000158,2]
[401321719,1768134644190,-1500.0,0.00015864,2]
[401321720,1768134644199,-555.48898116,0.0001589,2]
[401321721,1768134644209,-2500.0,0.0001589,2]
[401321722,1768134644218,-2500.0,0.0001589,2]
[401321723,1768134644228,-2500.0,0.0001589,2]
[401321724,1768134644237,-2500.0,0.0001589,2]
[401321725,1768134644247,-2500.0,0.0001589,2]
[401321726,1768134644257,-2134.65901332,0.0001589,2]
[401321727,1768134644267,-2500.0,0.0001589,2]
[401321728,1768134644275,-1006.66545063,0.00016012,2]
[401321729,1768134644285,-3000.0,0.00016012,2]
[401321730,1768134644295,-3000.0,0.00016012,2]
[401321731,1768134644305,-3000.0,0.00016012,2]
[401321732,1768134644314,-3000.0,0.00016012,2]
[401321733,1768134644325,-3000.0,0.00016012,2]
[401321734,1768134644334,-3000.0,0.00016012,2]
[401321735,1768134644344,-3000.0,0.00016012,2]
[401321736,1768134644354,-3000.0,0.00016012,2]
[401321737,1768134644364,-897.40421659,0.00016012,2]
[401321738,1768134644374,-1600.0,0.00016164,2]
[401321739,1768134644384,-354.84,0.000163,2]
[401321740,1768134644393,-192.83,0.000163,2]
[401321741,1768134644403,-1800.0,0.00016412,2]
[401321742,1768134644414,-500.0,0.00016438,2]
[401321743,1768134644423,-500.0,0.00016438,2]
[401321744,1768134644433,-500.0,0.00016438,2]
[401321745,1768134644443,-500.0,0.00016438,2]
[401321746,1768134644452,-500.0,0.00016438,2]
[401321747,1768134644462,-500.0,0.00016438,2]
[401321748,1768134644471,-481.92486594,0.00016438,2]
[401321749,1768134644480,-594.49843147,0.00016438,2]
[401321750,1768134644489,-3002.60955562,0.00016438,2]
[401321751,1768134644498,-3000.0,0.00016438,2]
[401321753,1768134644508,-1552.92932298,0.00016438,2]
[401321755,1768134644517,-3000.0,0.00016438,2]
[401321756,1768134644527,-3000.0,0.00016438,2]
[401321757,1768134644537,-3000.0,0.00016438,2]
[401321758,1768134644547,-260.15865923,0.00016438,2]
[401321760,1768134644556,-979.02672329,0.0001646,2]
[401321762,1768134644565,-3500.0,0.0001656,2]
[401321764,1768134644575,-3500.0,0.0001656,2]
[401321766,1768134644584,-3500.0,0.0001656,2]
[401321768,1768134644594,-3500.0,0.0001656,2]
[401321770,1768134644603,-3500.0,0.0001656,2]
[401321771,1768134644613,-2942.53787952,0.0001656,2]
[401321772,1768134644622,-3500.0,0.0001656,2]
[401321773,1768134644632,-3500.0,0.0001656,2]
[401321774,1768134644641,-390.59685112,0.00016599,2]
[401321775,1768134644650,-354.84,0.000168,2]
[401321776,1768134644661,-192.83,0.000168,2]
[401321777,1768134644670,-2100.0,0.0001696,2]
[401321778,1768134644680,-2578.16970935,0.00016986,2]
[401321779,1768134644690,-3500.0,0.00016986,2]
[401321780,1768134644699,-3500.0,0.00016986,2]
[401321781,1768134644709,-3500.0,0.00016986,2]
[401321782,1768134644718,-33559.02167538,0.00017,2]
[401321783,1768134644726,-4999.99999901,0.00017,2]